Department Family,Entity,Date,Expense type,Expense area,Supplier,Transaction number,Amount
Home Office,HMPO - HM Passport Office,29/04/2013,Business Services,HMPO - HM Passport Office,INNOVATIONS VCS,74830503118295349454875,664.80
Home Office,HMPO - HM Passport Office,25/04/2013,Industrial Supplies,HMPO - HM Passport Office,WWW.BREGPRODUCTS.CO.UK,74745093115010049034144,510.00
Home Office,Home Office,17/04/2013,"Building Materials, Lumber Stores",HOS - Home Office Science,ARENA STOCK LTD,74830503106004163863649,665.24
Home Office,Home Office,09/04/2013,Business Services,PCD - Police ICT Company Directorate,FIREBRAND TRAINING LTD,74056573098525000336415,587.52
Home Office,Home Office,19/04/2013,Business Services,OSCT - Office of Security & Counter-Terrorism,FJELL OG FJORD KONFERANSE,74463663108871092475255,"1,142.22"
Home Office,Home Office,19/04/2013,Catalog Merchants,HOS - Home Office Science,4 LEAF BATTERIES LTD,74085323108518000223983,504.00
Home Office,Home Office,15/04/2013,Electrical Parts and Equipment,HOS - Home Office Science,FARNELL INTERNET,74830503101193123106952,698.98
Home Office,Home Office,15/04/2013,Electrical Parts and Equipment,HOS - Home Office Science,FARNELL INTERNET,74830503101193123106960,853.20
Home Office,Home Office,12/04/2013,Hardware Equipment and Supplies,HOS - Home Office Science,ESSENTIAL SUPPLIES LTD,74916773102020197193282,533.56
Home Office,Home Office,12/04/2013,Industrial Supplies,HOS - Home Office Science,POLYMAX LTD,74830503101295379946336,528.00
Home Office,Home Office,01/04/2013,"Lodging-Hotels, Motels, Resorts",CPG - Crime & Policing Group,CROWNLAWN APARTMENTS,74678583089040357110239,643.00
Home Office,Home Office,11/04/2013,"Lodging-Hotels, Motels, Resorts",Finance & Corporate Services Group,PARK PLAZA RIVERBANK,74463653100871011191248,"41,375.00"
Home Office,Home Office,22/04/2013,"Lodging-Hotels, Motels, Resorts",CPG - Crime & Policing Group,JURYS BIRMINGHAM,74929003110008078866644,522.00
Home Office,Home Office,01/04/2013,Miscellaneous and Specialty Retail Stores,HOS - Home Office Science,GETMAPPING.COM PLC,74745103091040960089541,712.69
Home Office,Home Office,11/04/2013,Miscellaneous and Specialty Retail Stores,HOS - Home Office Science,COMPONENT FORCE LTD,74745103101010191375090,745.87
Home Office,Home Office,29/04/2013,Schools and Educational Services,HOS - Home Office Science,GORDON RESEARCH,24431053117200005797281,904.83
Home Office,Home Office,08/04/2013,"Stationery, Office, and School Supply Stores",Finance & Corporate Services Group,BANNER BUSINESS SUPPLIES,74678583096080078705983,"41,372.00"
Home Office,UKBA - UK Border Agency,15/04/2013,Air Travel ,UKBA - UK Border Agency,FINNAIR U.K,74920583102000514162183,528.26
Home Office,UKBA - UK Border Agency,04/04/2013,"Cleaning and Maintenance, Janitorial Services",UKBA - UK Border Agency,CAPITAL COMPUTER CARE LT,74056573094003000289889,605.46
Home Office,UKBA - UK Border Agency,04/04/2013,Computer and Data Processing Services,UKBA - UK Border Agency,XMA LTD,74929003094004870329501,532.89
Home Office,UKBA - UK Border Agency,05/04/2013,Computer and Data Processing Services,UKBA - UK Border Agency,XMA LTD,74929003095001170605381,736.92
Home Office,UKBA - UK Border Agency,11/04/2013,Computer and Data Processing Services,UKBA - UK Border Agency,XMA LTD,74929003101009678809175,555.18
Home Office,UKBA - UK Border Agency,22/04/2013,Computer and Data Processing Services,UKBA - UK Border Agency,XMA LTD,74929003112009473392200,579.38
Home Office,UKBA - UK Border Agency,23/04/2013,Computer and Data Processing Services,UKBA - UK Border Agency,XMA LTD,74929003113005379750912,512.50
Home Office,UKBA - UK Border Agency,25/04/2013,Computer and Data Processing Services,UKBA - UK Border Agency,XMA LTD,74929003115002470681367,728.80
Home Office,UKBA - UK Border Agency,05/04/2013,"Computers, Computer Peripheral Equipment, Software",UKBA - UK Border Agency,STORM TECHNOLOGIES LTD,74085323094517000342914,670.80
Home Office,UKBA - UK Border Agency,16/04/2013,"Engineering, Architectural, and Surveying Services",UKBA - UK Border Agency,PRINTEX SERVICES LTD,74678583106040037719739,540.00
Home Office,UKBA - UK Border Agency,01/04/2013,"Lodging-Hotels, Motels, Resorts",UKBA - UK Border Agency,SUITE NOVOTEL,74973003091309110619696,"1,222.27"
Home Office,UKBA - UK Border Agency,03/04/2013,"Lodging-Hotels, Motels, Resorts",UKBA - UK Border Agency,HOTEL APPIA,74976003092516624304328,513.27
Home Office,UKBA - UK Border Agency,08/04/2013,"Lodging-Hotels, Motels, Resorts",UKBA - UK Border Agency,SUITE NOVOTEL,74973003096309611257165,"7,013.78"
Home Office,UKBA - UK Border Agency,08/04/2013,"Lodging-Hotels, Motels, Resorts",UKBA - UK Border Agency,PACIFIC,74595353096000002150914,"4,223.12"
Home Office,UKBA - UK Border Agency,08/04/2013,"Lodging-Hotels, Motels, Resorts",UKBA - UK Border Agency,SUITE NOVOTEL,74973003096309611257173,"1,131.32"
Home Office,UKBA - UK Border Agency,12/04/2013,"Lodging-Hotels, Motels, Resorts",UKBA - UK Border Agency,THE ASHOK,74327073102210217840040,809.25
Home Office,UKBA - UK Border Agency,12/04/2013,"Lodging-Hotels, Motels, Resorts",UKBA - UK Border Agency,SUITE NOVOTEL,74973003102310211246154,"7,922.61"
Home Office,UKBA - UK Border Agency,12/04/2013,"Lodging-Hotels, Motels, Resorts",UKBA - UK Border Agency,PACIFIC,74595353102000001941810,"3,389.98"
Home Office,UKBA - UK Border Agency,15/04/2013,"Lodging-Hotels, Motels, Resorts",UKBA - UK Border Agency,The Ashok,74055453102001224900782,818.43
Home Office,UKBA - UK Border Agency,15/04/2013,"Lodging-Hotels, Motels, Resorts",UKBA - UK Border Agency,THE BULL HOTEL,74463653104871049339518,658.00
Home Office,UKBA - UK Border Agency,15/04/2013,"Lodging-Hotels, Motels, Resorts",UKBA - UK Border Agency,SUITE NOVOTEL,74973003103310312489447,"1,229.75"
Home Office,UKBA - UK Border Agency,15/04/2013,"Lodging-Hotels, Motels, Resorts",UKBA - UK Border Agency,HOLIDAY INN,74976013101516820204122,"2,502.18"
Home Office,UKBA - UK Border Agency,16/04/2013,"Lodging-Hotels, Motels, Resorts",UKBA - UK Border Agency,PREMIER APARTMENTS,74463653105901057936548,948.00
Home Office,UKBA - UK Border Agency,16/04/2013,"Lodging-Hotels, Motels, Resorts",UKBA - UK Border Agency,SUITE NOVOTEL,74973003106310612027407,"1,232.79"
Home Office,UKBA - UK Border Agency,18/04/2013,"Lodging-Hotels, Motels, Resorts",UKBA - UK Border Agency,1 WASHINGTON CIRCLE HOTEL,24755423107151074793013,"1,006.00"
Home Office,UKBA - UK Border Agency,19/04/2013,"Lodging-Hotels, Motels, Resorts",UKBA - UK Border Agency,GARVOCK HOUSE HOTEL,74463653108871088561176,795.00
Home Office,UKBA - UK Border Agency,19/04/2013,"Lodging-Hotels, Motels, Resorts",UKBA - UK Border Agency,PACIFIC,74595353109000001893386,"4,270.21"
Home Office,UKBA - UK Border Agency,19/04/2013,"Lodging-Hotels, Motels, Resorts",UKBA - UK Border Agency,SUITE NOVOTEL,74973003109310911150915,"1,312.02"
Home Office,UKBA - UK Border Agency,19/04/2013,"Lodging-Hotels, Motels, Resorts",UKBA - UK Border Agency,SUITE NOVOTEL,74973003109310911150907,"7,091.99"
Home Office,UKBA - UK Border Agency,22/04/2013,"Lodging-Hotels, Motels, Resorts",UKBA - UK Border Agency,HILTON QUEENSTOWN,74616583109000224971065,734.27
Home Office,UKBA - UK Border Agency,22/04/2013,"Lodging-Hotels, Motels, Resorts",UKBA - UK Border Agency,HILTON QUEENSTOWN,74616583109000194962177,578.62
Home Office,UKBA - UK Border Agency,22/04/2013,"Lodging-Hotels, Motels, Resorts",UKBA - UK Border Agency,HILTON QUEENSTOWN,74616583109000194962508,507.30
Home Office,UKBA - UK Border Agency,23/04/2013,"Lodging-Hotels, Motels, Resorts",UKBA - UK Border Agency,PREMIER APARTMENTS,74463653112901127144215,948.00
Home Office,UKBA - UK Border Agency,25/04/2013,"Lodging-Hotels, Motels, Resorts",UKBA - UK Border Agency,HILTON AUCKLAND,74616583115000065221887,863.45
Home Office,UKBA - UK Border Agency,25/04/2013,"Lodging-Hotels, Motels, Resorts",UKBA - UK Border Agency,REGENT HILLS HOSPITALITY,74243673115000034220507,609.19
Home Office,UKBA - UK Border Agency,25/04/2013,"Lodging-Hotels, Motels, Resorts",UKBA - UK Border Agency,REGENT HILLS HOSPITALITY,74243673115000034220531,613.66
Home Office,UKBA - UK Border Agency,25/04/2013,"Lodging-Hotels, Motels, Resorts",UKBA - UK Border Agency,CASCADE HOTEL,74595353115000003543551,544.91
Home Office,UKBA - UK Border Agency,25/04/2013,"Lodging-Hotels, Motels, Resorts",UKBA - UK Border Agency,ROMANTICA HOTEL,74117143114000032767218,"1,707.10"
Home Office,UKBA - UK Border Agency,29/04/2013,"Lodging-Hotels, Motels, Resorts",UKBA - UK Border Agency,IBIS BIRMINGHAM BORDESLEY,74463653117871179130476,853.10
Home Office,UKBA - UK Border Agency,29/04/2013,"Lodging-Hotels, Motels, Resorts",UKBA - UK Border Agency,KEAVIL HOUSE,74929003116009365179653,"1,463.00"
Home Office,UKBA - UK Border Agency,29/04/2013,"Lodging-Hotels, Motels, Resorts",UKBA - UK Border Agency,PACIFIC,74595353117000002107281,"3,351.52"
Home Office,UKBA - UK Border Agency,29/04/2013,"Lodging-Hotels, Motels, Resorts",UKBA - UK Border Agency,SUITE NOVOTEL,74973003118311812760355,"1,218.22"
Home Office,UKBA - UK Border Agency,29/04/2013,"Lodging-Hotels, Motels, Resorts",UKBA - UK Border Agency,SUITE NOVOTEL,74973003119311910638999,"1,218.22"
Home Office,UKBA - UK Border Agency,29/04/2013,Miscellaneous and Specialty Retail Stores,UKBA - UK Border Agency,DIRTY BLINDS.CO.UK,74085323116516000430731,793.15
Home Office,UKBA - UK Border Agency,16/04/2013,Miscellaneous House Furnishing Specialty Shops,UKBA - UK Border Agency,IKEA SHOP ONLINE CNP,74830503104039337377748,585.00
Home Office,UKBA - UK Border Agency,18/04/2013,Passenger Railways,UKBA - UK Border Agency,DOVER PRIORY STATI,74830503107160382464046,543.80
Home Office,UKBA - UK Border Agency,09/04/2013,"Stationary, Office Supplies, Printing and Writing",UKBA - UK Border Agency,WWW.NEOPOST.CO.UK,74929003099008471230286,978.50
Home Office,UKBA - UK Border Agency,18/04/2013,"Stationary, Office Supplies, Printing and Writing",UKBA - UK Border Agency,WWW.NEOPOST.CO.UK,74929003108007570465131,978.50
Home Office,UKBA - UK Border Agency,29/04/2013,"Stationary, Office Supplies, Printing and Writing",UKBA - UK Border Agency,WWW.NEOPOST.CO.UK,74929003117004472474898,978.50
Home Office,UKBA - UK Border Agency,29/04/2013,"Stationary, Office Supplies, Printing and Writing",UKBA - UK Border Agency,WWW.NEOPOST.CO.UK,74929003117001872474478,978.50
Home Office,UKBA - UK Border Agency,29/04/2013,"Stationary, Office Supplies, Printing and Writing",UKBA - UK Border Agency,WWW.NEOPOST.CO.UK,74929003117001472474399,978.50
Home Office,UKBA - UK Border Agency,03/04/2013,"Stationery, Office, and School Supply Stores",UKBA - UK Border Agency,BANNER BUSINESS SUPPLIES,74678583093050079161802,578.03
Home Office,UKBA - UK Border Agency,04/04/2013,"Stationery, Office, and School Supply Stores",UKBA - UK Border Agency,BANNER BUSINESS SUPPLIES,74678583094060074946437,525.21
Home Office,UKBA - UK Border Agency,05/04/2013,"Stationery, Office, and School Supply Stores",UKBA - UK Border Agency,WWW.STAPLES.CO.UK,74929003095005774047601,653.35
Home Office,UKBA - UK Border Agency,08/04/2013,"Stationery, Office, and School Supply Stores",UKBA - UK Border Agency,BANNER BUSINESS SUPPLIES,74678583096080078705959,797.58
Home Office,UKBA - UK Border Agency,08/04/2013,"Stationery, Office, and School Supply Stores",UKBA - UK Border Agency,BANNER BUSINESS SUPPLIES,74678583096080078705967,658.20
Home Office,UKBA - UK Border Agency,12/04/2013,"Stationery, Office, and School Supply Stores",UKBA - UK Border Agency,BANNER BUSINESS SUPPLIES,74678583102020000049284,636.46
Home Office,UKBA - UK Border Agency,22/04/2013,"Stationery, Office, and School Supply Stores",UKBA - UK Border Agency,BANNER BUSINESS SUPPLIES,74678583110080059891754,823.37
Home Office,UKBA - UK Border Agency,25/04/2013,"Stationery, Office, and School Supply Stores",UKBA - UK Border Agency,BANNER BUSINESS SUPPLIES,74678583115010068834813,562.58
Home Office,UKBA - UK Border Agency,29/04/2013,"Stationery, Office, and School Supply Stores",UKBA - UK Border Agency,BANNER BUSINESS SUPPLIES,74678583117030082709609,582.21
